bitfinex-derivatives/quotes_SOLF0:USTF0_20251002
["timestamp","ask_amount","ask_price","bid_price","bid_amount"]
[1759386353818,3.1301891,223.7,223.67,4.81]
[1759386354120,3.1301891,223.69,223.67,4.81]
[1759386354320,7.76,223.74,223.67,4.81]
[1759386354523,3.13455217,223.73,223.71,4.81]
[1759386354822,3.13455217,223.78,223.71,4.81]
[1759386355017,3.13455217,223.77,223.71,4.81]
[1759386355219,3.13455217,223.76,223.7,4.0208]
[1759386355415,7.76,223.78,223.73,4.81]
[1759386355611,3.13455217,223.77,223.73,4.81]
[1759386355819,3.13455217,223.76,223.73,4.81]
[1759386356020,7.76,223.77,223.73,4.81]
[1759386356323,10.89455217,223.76,223.73,4.81]
[1759386356620,7.76,223.8,223.72,4.81]
[1759386356812,3.08436059,223.79,223.72,4.81]
[1759386357016,3.08436059,223.78,223.72,4.81]
[1759386357220,3.08436059,223.77,223.71,117.3507]
[1759386358510,7.76,223.78,223.71,117.3507]
[1759386358915,10.84436059,223.78,223.71,117.3507]
[1759386359221,3.08436059,223.77,223.71,117.3507]
[1759386359422,7.76,223.78,223.71,117.3507]
[1759386359816,10.84436059,223.78,223.71,117.3507]
[1759386360115,3.08436059,223.77,223.71,117.3507]
[1759386360720,7.76,223.78,223.71,117.3507]
[1759386361727,7.76,223.78,223.72,4.81]
[1759386364027,2.15674749,223.77,223.68,4.0212]
[1759386364323,7.76,223.76,223.68,76.1812]
[1759386364721,2.15674749,223.77,223.68,76.1812]
[1759386364927,7.76,223.76,223.68,76.1812]
[1759386366230,1.38065568,223.72,223.68,76.1812]
[1759386366428,1.38065568,223.72,223.69,4.81]
[1759386367930,7.76,223.71,223.68,76.97]
[1759386368231,1.38065568,223.72,223.69,4.81]
[1759386368831,9.14065568,223.72,223.69,4.81]
[1759386370231,7.76,223.71,223.64,8.832]
[1759386370428,9.14065568,223.69,223.65,4.81]
[1759386370629,9.14065568,223.69,223.64,112.502]
[1759386371228,9.14065568,223.69,223.65,4.81]
[1759386371628,9.14065568,223.69,223.64,112.502]
[1759386372326,9.14065568,223.69,223.65,4.81]
[1759386372534,1.38065568,223.69,223.65,4.81]
[1759386372731,1.38065568,223.69,223.64,112.502]
[1759386372932,1.38065568,223.69,223.65,4.81]
[1759386373132,1.38065568,223.69,223.64,112.502]
[1759386373332,1.38065568,223.69,223.67,4.81]
[1759386377134,7.76,223.71,223.67,4.81]
[1759386378438,1.38065568,223.72,223.67,4.81]
[1759386378933,7.76,223.71,223.66,4.0217]
[1759386379137,7.76,223.71,223.64,4.81]
[1759386379138,1.38065568,223.69,223.64,4.81]
[1759386379337,7.76,223.68,223.64,4.81]
[1759386379532,1.38065568,223.69,223.64,4.81]
[1759386380133,7.76,223.68,223.64,4.81]
[1759386380535,7.76,223.68,223.52,62.5969]
[1759386380536,7.76,223.68,223.57,4.81]
[1759386380737,1.38065568,223.66,223.58,4.81]
[1759386381638,1.38065568,223.66,223.61,4.0226]
[1759386381840,9.14065568,223.66,223.62,4.81]
[1759386383136,9.14065568,223.66,223.61,4.0226]
[1759386383334,9.14065568,223.66,223.62,4.81]
[1759386384229,1.38065568,223.66,223.61,8.8426]
[1759386384435,7.35,223.65,223.58,117.403]
[1759386386035,7.35,223.65,223.59,4.0228]
[1759386387339,3.06213209,223.66,223.6,4.82]
[1759386387536,7.35,223.68,223.6,4.82]
[1759386387737,11.79278777,223.68,223.61,4.82]
[1759386387938,7.35,223.72,223.62,4.82]
[1759386388241,7.35,223.72,223.65,4.82]
[1759386388443,8.73065568,223.72,223.65,4.82]
[1759386389247,7.35,223.72,223.65,4.82]
[1759386389441,8.73065568,223.72,223.65,4.82]
[1759386391241,11.79337447,223.72,223.65,4.82]
[1759386391445,3.06271879,223.71,223.65,4.82]
[1759386391644,8.73065568,223.72,223.65,4.82]
[1759386392447,8.73065568,223.72,223.64,112.7219]
[1759386392448,1.38065568,223.69,223.64,108.7]
[1759386392641,1.38065568,223.66,223.62,4.81]
[1759386393145,7.23,223.65,223.62,4.81]
[1759386395151,10.29591243,223.68,223.64,4.81]
[1759386395647,7.23,223.67,223.64,4.81]
[1759386399950,10.29591243,223.67,223.64,4.81]
[1759386400152,7.23,223.67,223.64,4.81]
[1759386401250,10.30135576,223.67,223.64,4.81]
[1759386401450,7.23,223.67,223.64,4.81]
[1759386401846,10.30172095,223.67,223.64,4.81]
[1759386402044,7.23,223.67,223.64,4.81]
[1759386402546,10.30200108,223.67,223.64,4.81]
[1759386402753,7.23,223.67,223.65,4.81]
[1759386402947,3.07231265,223.68,223.65,4.81]
[1759386403145,10.30231265,223.68,223.65,4.81]
[1759386403343,3.07231265,223.68,223.63,4.0222]
[1759386403545,7.23,223.72,223.66,4.81]
[1759386403754,3.07231265,223.71,223.65,113.41]
[1759386403951,7.23,223.72,223.65,113.41]
[1759386404148,3.07358548,223.71,223.65,113.41]
[1759386404345,10.30358548,223.7,223.66,4.81]
[1759386404546,7.23,223.7,223.66,4.81]
[1759386405448,10.30408374,223.7,223.66,4.81]
[1759386405654,1.38065568,223.74,223.63,113.41]
[1759386405655,10.30510642,223.69,223.63,113.41]
[1759386405854,7.23,223.69,223.63,113.41]
[1759386406254,7.23,223.69,223.63,4.81]
[1759386406458,7.23,223.67,223.63,4.81]
[1759386406655,7.23,223.66,223.63,4.81]
[1759386406955,3.07534358,223.65,223.59,8.833]
[1759386407160,7.23,223.66,223.59,88.27]
[1759386407460,8.61065568,223.64,223.6,4.81]
[1759386407657,1.38065568,223.64,223.6,4.81]
[1759386407856,7.23,223.63,223.6,4.81]
[1759386409153,7.23,223.7,223.61,4.81]
[1759386409461,7.23,223.67,223.61,4.81]
[1759386409657,7.23,223.65,223.61,4.81]
[1759386410051,8.61065568,223.65,223.58,4.0233]
[1759386410257,7.23,223.63,223.57,88.18]
[1759386410564,7.23,223.63,223.57,108.72]
[1759386410965,7.23,223.63,223.56,4.81]
[1759386411263,4.45655086,223.62,223.56,4.81]
[1759386411464,3.07589518,223.61,223.56,4.81]
[1759386411672,1.38065568,223.62,223.56,4.81]
[1759386411962,3.07575947,223.61,223.55,108.72]
[1759386412161,1.38065568,223.62,223.56,4.81]
[1759386412357,3.07576721,223.61,223.54,4.024]
[1759386412557,3.07576721,223.61,223.5,325.36]
[1759386412558,7.23,223.58,223.5,330.17]
[1759386412759,1.38065568,223.56,223.5,330.17]
[1759386413256,1.38065568,223.56,223.5,439.05]
[1759386413457,1.38065568,223.56,223.5,330.17]
[1759386413667,1.38065568,223.56,223.5,443.0746]
[1759386413855,1.38065568,223.56,223.5,330.17]
[1759386414058,1.38065568,223.56,223.5,439.03]
[1759386414458,1.38065568,223.56,223.5,330.17]
[1759386414658,1.38065568,223.56,223.5,439.03]
[1759386415571,1.38065568,223.56,223.52,4.0241]
[1759386415760,7.48,223.55,223.52,4.0241]
[1759386417166,7.48,223.55,223.52,8.8441]
[1759386418668,8.86065568,223.59,223.53,4.82]
[1759386426278,7.48,223.59,223.53,4.82]
[1759386427574,3.07063805,223.61,223.54,62.5938]
[1759386427781,7.48,223.64,223.56,4.82]
[1759386428376,10.55063805,223.64,223.56,4.82]
[1759386428677,10.55063805,223.63,223.59,4.82]
[1759386428881,7.48,223.63,223.59,4.82]
[1759386429183,7.48,223.63,223.58,4.0231]
[1759386430185,7.48,223.68,223.6,4.0228]
[1759386430384,3.06477981,223.67,223.6,4.0228]
[1759386430785,3.06477981,223.67,223.59,4.82]
[1759386431386,3.06477981,223.67,223.6,108.84]
[1759386431988,7.48,223.66,223.59,4.82]
[1759386432186,10.54477981,223.66,223.59,82.44]
[1759386432489,7.48,223.66,223.59,82.44]
[1759386433288,7.48,223.66,223.59,86.463]
[1759386433484,10.5449812,223.66,223.59,86.463]
[1759386433795,3.06477936,223.65,223.59,86.463]
[1759386434593,3.06477936,223.65,223.59,4.023]
[1759386437487,3.06477936,223.64,223.57,4.82]
[1759386437687,10.54477936,223.63,223.57,4.82]
[1759386437889,7.48,223.63,223.57,4.82]
[1759386438786,10.54669575,223.63,223.57,4.82]
[1759386438986,7.48,223.63,223.57,4.82]
[1759386439482,10.54678266,223.63,223.57,4.82]
[1759386439688,7.48,223.63,223.56,4.0234]
[1759386439987,3.06696864,223.62,223.56,4.0234]
[1759386440187,7.48,223.63,223.56,4.0234]
[1759386441091,10.54733725,223.63,223.56,4.0234]
[1759386441292,7.48,223.63,223.56,8.8434]
[1759386441688,10.54749854,223.63,223.56,8.8434]
[1759386441889,7.48,223.63,223.56,8.8434]
[1759386442390,3.06712638,223.63,223.58,4.023]
[1759386442598,7.5,223.68,223.59,4.81]
[1759386442893,7.5,223.68,223.61,4.81]
[1759386442894,3.06712638,223.67,223.61,4.81]
[1759386443085,3.06712638,223.66,223.61,4.81]
[1759386443292,7.5,223.68,223.61,4.81]
[1759386443593,7.5,223.66,223.6,108.86]
[1759386445790,4.0217,223.66,223.6,108.86]
[1759386446294,4.0217,223.66,223.58,4.81]
[1759386446496,7.51,223.65,223.58,4.81]
[1759386446692,3.03147432,223.64,223.58,4.81]
[1759386446893,3.03147432,223.63,223.58,4.81]
[1759386447193,4.0217,223.66,223.58,4.81]
[1759386447194,7.51,223.64,223.58,4.81]
[1759386447394,7.51,223.62,223.58,4.81]
[1759386448690,3.03186193,223.65,223.58,4.81]
[1759386448888,10.54186193,223.64,223.58,4.81]
[1759386449087,7.51,223.62,223.58,4.81]
[1759386449495,7.51,223.62,223.56,113.0233]
[1759386449795,7.51,223.62,223.56,117.8333]
[1759386450793,3.03382243,223.63,223.58,4.0231]
[1759386451092,3.03398216,223.64,223.58,4.0231]
[1759386451294,3.03398216,223.63,223.59,4.81]
[1759386451495,7.51,223.66,223.59,4.81]
[1759386451691,3.03469995,223.65,223.59,4.81]
[1759386451893,3.03469995,223.64,223.58,113.0031]
[1759386452094,7.51,223.66,223.6,8.8329]
[1759386452395,4.0213,223.69,223.6,8.8329]
[1759386452396,3.03481446,223.65,223.62,4.81]
[1759386452595,3.03481446,223.73,223.64,4.81]
[1759386452792,3.03481446,223.72,223.64,4.81]
[1759386452991,3.03481446,223.71,223.64,4.81]
[1759386453198,3.03481446,223.7,223.64,4.81]
[1759386453401,3.03481446,223.69,223.63,117.8123]
[1759386453700,7.51,223.71,223.63,117.8123]
[1759386455598,7.51,223.71,223.63,8.8323]
[1759386455902,7.51,223.71,223.64,82.82]
[1759386458900,7.51,223.71,223.65,4.81]
[1759386466609,7.51,223.71,223.64,82.82]
[1759386467010,15.43590756,223.78,223.64,82.82]
[1759386467314,7.51,223.74,223.65,4.81]
[1759386468212,7.51,223.74,223.65,8.8319]
[1759386469415,7.51,223.72,223.65,8.8319]
[1759386469812,7.51,223.72,223.66,4.0217]
[1759386470115,9.66983777,223.82,223.68,4.81]
[1759386470510,9.66983777,223.82,223.72,4.81]
[1759386471516,7.51,223.82,223.74,4.81]
[1759386473518,11.5291,223.82,223.74,4.81]
[1759386478520,7.76,223.82,223.71,4.8]
[1759386478921,7.76,223.79,223.71,4.8]
[1759386479118,7.76,223.77,223.67,4.0217]
[1759386479522,7.76,223.77,223.68,4.8]
[1759386480822,7.76,223.77,223.69,4.0213]
[1759386483226,7.76,223.77,223.72,4.8]
[1759386483426,7.76,223.77,223.66,4.8]
[1759386483817,7.76,223.77,223.69,4.8]
[1759386487832,4.0201,223.76,223.69,4.8]
[1759386488729,9.14010779,223.77,223.69,4.8]
[1759386489731,7.76,223.77,223.69,4.8]
[1759386492232,7.76,223.82,223.73,4.8]
[1759386495033,7.76,223.82,223.74,4.0204]
[1759386496535,7.76,223.82,223.77,4.8]
[1759386496735,7.76,223.82,223.76,4.02]
[1759386497034,7.76,223.82,223.76,8.82]
[1759386497426,2.79180293,223.83,223.77,4.8]
[1759386498530,7.76,223.86,223.77,4.8]
[1759386500737,11.7783,223.86,223.77,4.8]
[1759386500932,1.38010779,223.84,223.77,4.8]
[1759386501126,7.76,223.83,223.77,4.8]
[1759386503145,7.62,223.87,223.78,4.0197]
[1759386503435,7.62,223.87,223.79,4.8]
[1759386504230,7.62,223.87,223.8,4.0193]
[1759386512349,7.62,223.87,223.81,8.809]
[1759386514844,7.62,223.87,223.81,4.79]
[1759386518951,7.62,223.87,223.81,113.41]
[1759386528856,7.74,223.88,223.82,108.52]
[1759386530254,9.12010779,223.91,223.83,4.79]
[1759386531549,7.74,223.91,223.83,4.79]
[1759386531755,7.74,223.89,223.83,4.79]
[1759386533159,7.74,223.93,223.83,1.38010779]
[1759386533354,7.74,223.9,223.84,113.31]
[1759386540963,0.77748858,223.95,223.86,4.8]
[1759386541167,7.51,223.98,223.88,4.8]
[1759386541466,7.51,223.98,223.85,4.8]
[1759386541467,7.51,223.92,223.85,4.8]
[1759386541668,7.51,223.92,223.85,60.32]
[1759386542260,1.38010779,223.91,223.85,60.32]
[1759386542462,11.5271,223.92,223.85,60.32]
[1759386542664,12.90720779,223.92,223.85,60.32]
[1759386543865,11.5271,223.92,223.85,60.32]
[1759386545271,8.28731491,223.98,223.89,4.8]
[1759386545774,9.6674227,223.98,223.89,4.8]
[1759386546472,8.89010779,223.98,223.89,4.8]
[1759386547076,1.38010779,223.97,223.89,4.8]
[1759386547272,5.39630779,223.97,223.89,4.8]
[1759386548273,4.0162,223.97,223.89,4.8]
[1759386549382,7.51,223.98,223.89,4.8]
[1759386550783,4.0162,223.97,223.89,4.8]
[1759386551275,2.153242,223.96,223.89,4.8]
[1759386551677,2.153242,223.96,223.9,4.0176]
[1759386552681,13.679442,223.98,223.89,4.8]
[1759386553877,4.0166,223.96,223.89,4.8]
[1759386554084,7.51,223.95,223.89,4.8]
[1759386554476,4.0169,223.94,223.89,4.8]
[1759386554876,7.51,223.93,223.89,4.8]
[1759386555083,7.51,223.93,223.85,4.8]
[1759386555277,4.0173,223.92,223.85,4.8]
[1759386555480,7.51,223.91,223.85,4.8]
[1759386555983,7.51,223.89,223.85,4.8]
[1759386556185,7.51,223.92,223.81,4.8]
[1759386557585,7.51,223.92,223.82,4.019]
[1759386557785,7.51,223.92,223.83,4.8]
[1759386561081,4.0174,223.91,223.83,4.8]
[1759386562090,7.51,223.92,223.83,4.8]
[1759386562689,11.5273,223.92,223.83,4.8]
[1759386563584,11.5273,223.92,223.84,4.0186]
[1759386563891,7.51,223.92,223.85,4.8]
[1759386566889,0.77725415,224.01,223.85,4.8]
[1759386567193,7.19,224.05,223.96,2.153242]
[1759386567491,7.19,224.05,223.97,6.953242]
[1759386567885,7.19,224.05,223.97,4.8]
[1759386568083,2.153242,224.1,223.93,3.75039788]
[1759386568084,2.153242,224.1,223.95,23.08]
[1759386568486,7.19,224.09,223.95,23.08]
[1759386568688,62.4445,224.09,223.95,23.08]
[1759386568892,62.4466,224.08,223.95,23.08]
[1759386569293,7.19,224.06,223.95,23.08]
[1759386570093,6.167842,224.07,223.95,23.08]
[1759386570487,68.617442,224.07,223.95,23.08]
[1759386570689,7.19,224.04,223.93,4.8]
[1759386571086,108.76,224.09,223.93,4.8]
[1759386571087,7.19,224.13,223.94,4.8]
[1759386571291,7.19,224.13,224.02,62.4618]
[1759386571489,7.19,224.13,224.05,2.153242]
[1759386571691,7.19,224.13,224.06,4.8]
[1759386572095,0.77669903,224.18,224.09,4.8]
[1759386572394,4.94913964,224.31,224.14,62.4286]
[1759386572395,7.19,224.31,224.14,62.4286]
[1759386572693,7.42370946,224.4,224.12,62.4355]
[1759386572694,2.153242,224.32,224.15,6.173242]
[1759386572888,7.24,224.39,224.16,4.02]
[1759386573087,7.24,224.39,224.1,7.497903]
[1759386573088,2.153242,224.3,224.1,8.98419065]
[1759386573294,2.153242,224.3,224.13,16.44969841]
[1759386573487,7.19,224.25,224.13,0.77645641]
[1759386574000,7.19,224.23,224.13,0.77645641]
[1759386574396,2.153242,224.28,224.14,7.16]
[1759386574597,109.38,224.3,224.14,7.16]
[1759386574796,62.3548,224.41,224.15,2.153242]
[1759386574995,62.3817,224.32,224.14,7.16]
[1759386575195,62.391,224.27,224.14,7.16]
[1759386575397,62.391,224.27,224.13,0.77645641]
[1759386575597,64.550342,224.25,224.13,0.77645641]
[1759386575989,62.3772,224.33,224.16,7.16]
[1759386576197,110.0,224.32,224.18,7.16]
[1759386576401,7.19,224.36,224.22,7.16]
[1759386576899,7.19,224.3,224.14,7.16]
[1759386577200,7.19,224.3,224.18,9.313242]
[1759386577503,7.19,224.28,224.14,2.153242]
[1759386577689,7.19,224.28,224.15,7.16]
[1759386578096,7.19,224.26,224.15,7.16]
[1759386578491,7.19,224.3,224.18,7.16]
[1759386578797,7.19,224.34,224.22,7.16]
[1759386578995,7.19,224.32,224.22,7.16]
[1759386580604,69.1306843,224.35,224.25,2.153242]
[1759386580605,2.7507843,224.35,224.25,2.153242]
[1759386580805,2.7507843,224.35,224.26,7.16]
[1759386581503,7.19,224.34,224.26,7.16]
[1759386581804,7.19,224.34,224.22,9.313242]
[1759386582002,7.19,224.34,224.22,7.16]
[1759386582206,73.5721,224.34,224.22,7.16]
[1759386582403,73.5721,224.34,224.21,2.153242]
[1759386582404,7.19,224.31,224.18,7.16]
[1759386582598,7.19,224.31,224.09,3.90710278]
[1759386582599,62.3885,224.28,224.14,7.16]
[1759386582802,7.19,224.27,224.14,7.16]
[1759386583696,7.19,224.32,224.18,7.16]
[1759386583896,7.19,224.32,224.21,2.153242]
[1759386584502,7.19,224.32,224.22,7.16]
[1759386586902,6.7601843,224.35,224.17,23.38]
[1759386586903,62.3804,224.31,224.17,9.313242]
[1759386587103,7.19,224.29,224.17,9.313242]
[1759386591409,7.19,224.29,224.18,2.153242]
[1759386591705,7.19,224.34,224.22,7.16]
[1759386591901,7.19,224.34,224.24,2.153242]
[1759386592196,7.19,224.34,224.25,7.16]
[1759386592806,7.19,224.32,224.21,9.313242]
[1759386593206,4.0101,224.31,224.21,9.313242]
[1759386593403,7.19,224.3,224.21,9.313242]
[1759386593805,7.19,224.3,224.21,7.16]
[1759386594004,7.19,224.3,224.21,9.313242]
[1759386594205,7.19,224.3,224.21,7.16]
[1759386594406,7.19,224.3,224.19,2.153242]
[1759386594601,7.19,224.3,224.17,7.47]
[1759386594602,62.3858,224.29,224.17,7.47]
[1759386594806,7.53,224.28,224.17,7.47]
[1759386595011,4.0109,224.27,224.17,7.47]
[1759386595223,7.53,224.28,224.17,7.47]
[1759386595920,11.5407,224.28,224.17,7.47]
[1759386596121,62.391,224.27,224.09,3.90710278]
[1759386596316,4.0116,224.23,224.1,9.623242]
[1759386596524,7.53,224.25,224.1,9.623242]
[1759386596813,62.3972,224.25,224.1,9.623242]
[1759386597013,2.153242,224.26,224.08,2.153242]
[1759386597014,7.53,224.21,224.08,2.153242]
[1759386597220,7.53,224.19,224.08,2.153242]
[1759386597420,7.53,224.17,224.05,7.47]
[1759386597817,7.53,224.17,224.04,2.153242]
[1759386597818,7.53,224.14,224.0,332.41]
[1759386598119,7.53,224.13,224.0,327.093242]
[1759386598422,7.53,224.13,224.01,7.47]
[1759386599921,7.53,224.13,224.01,11.4853]
[1759386601024,7.53,224.13,224.01,7.47]
[1759386601224,69.9742,224.08,223.91,7.47]
[1759386601428,62.4363,224.11,223.91,7.47]
[1759386601429,11.5446,224.06,223.91,7.47]
[1759386601722,7.53,224.06,223.91,7.47]
[1759386602114,7.53,224.06,223.91,11.4872]
[1759386602314,7.53,224.06,223.92,7.47]
[1759386603125,7.53,224.06,223.93,4.0168]
[1759386604028,7.53,224.06,223.94,7.47]
[1759386604322,62.4061,224.22,223.96,7.47]
[1759386604625,7.53,224.13,223.98,7.47]
[1759386604826,7.53,224.13,223.99,4.0158]
[1759386605223,7.53,224.13,223.98,7.47]
[1759386605429,7.53,224.13,224.0,11.4855]
[1759386605628,7.53,224.13,224.0,69.9358]
[1759386606219,7.53,224.13,224.02,4.0151]
[1759386606422,7.53,224.13,224.0,7.47]
[1759386606932,7.53,224.13,224.01,4.0154]
[1759386607225,7.53,224.13,224.03,62.4569]
[1759386607423,7.53,224.17,224.06,62.449]
[1759386607728,7.53,224.16,224.02,7.47]
[1759386607923,7.53,224.16,223.98,41.17]
[1759386608125,7.53,224.14,223.98,41.17]
[1759386608324,26.94,224.15,223.98,41.17]
[1759386608631,3.58426863,224.25,223.98,41.17]
[1759386608632,7.53,224.2,224.04,7.47]
[1759386609630,7.53,224.2,224.05,4.0146]
[1759386612326,7.53,224.18,224.05,4.0146]
[1759386613830,7.53,224.18,224.07,11.4843]
[1759386614432,7.53,224.18,224.07,7.47]
[1759386617329,65.97136863,224.29,224.11,7.47]
[1759386617529,329.70913964,224.31,224.11,7.47]
[1759386617530,7.53,224.28,224.13,7.47]
[1759386617934,7.53,224.28,224.16,4.0126]
[1759386618131,7.53,224.28,224.16,11.4826]
[1759386618635,7.53,224.28,224.19,7.47]
[1759386619143,7.53,224.34,224.19,7.47]
[1759386619639,7.53,224.31,224.19,11.4821]
[1759386620231,7.53,224.31,224.21,4.0118]
[1759386620542,7.53,224.31,224.22,7.47]
[1759386620938,10.2807843,224.35,224.23,4.0115]
[1759386621142,10.2807843,224.35,224.24,7.47]
[1759386621343,2.7507843,224.35,224.25,7.47]
[1759386621639,2.7507843,224.35,224.24,7.47]
[1759386622034,7.53,224.32,224.16,7.47]
[1759386622543,4.0103,224.3,224.16,7.47]
[1759386623633,4.0103,224.3,224.17,4.0125]
[1759386623843,4.0106,224.28,224.16,7.47]
[1759386624141,7.69,224.27,224.16,7.47]
[1759386624739,4.0111,224.26,224.16,7.47]
[1759386625442,7.69,224.25,224.11,7.37]
[1759386626043,7.69,224.25,224.14,4.013]
[1759386626239,7.69,224.25,224.15,7.37]
[1759386626444,4.0105,224.29,224.15,7.37]
[1759386627444,4.0105,224.29,224.19,7.37]
[1759386627847,7.69,224.3,224.19,7.37]
[1759386628443,7.69,224.3,224.2,4.0122]
[1759386628642,10.4407843,224.35,224.21,7.37]
[1759386628839,62.3747,224.34,224.21,7.37]
[1759386629041,7.69,224.33,224.21,7.37]
[1759386629244,7.69,224.3,224.12,7.37]
[1759386629444,7.69,224.3,224.14,7.37]
[1759386629640,11.7012,224.26,224.14,7.37]
[1759386630247,11.7012,224.26,224.15,4.0131]
[1759386631451,7.69,224.26,224.17,4.0128]
[1759386631650,4.0107,224.29,224.17,4.0128]
[1759386631953,7.69,224.3,224.18,7.37]
[1759386633051,7.69,224.3,224.2,7.37]
[1759386634752,7.69,224.3,224.21,4.012]
[1759386636455,7.69,224.34,224.24,7.37]
[1759386638349,4.01,224.33,224.24,7.37]
[1759386639056,7.69,224.34,224.24,7.37]
[1759386640755,11.6998,224.34,224.25,4.0113]
[1759386641051,124.0,224.53,224.31,4.0101]
[1759386641255,36.06986122,224.54,224.34,62.3738]
[1759386641551,3.58426863,224.55,224.38,62.3624]
[1759386641753,3.58426863,224.55,224.37,93.27]
[1759386642151,4.462,224.54,224.37,93.27]
[1759386642352,3.58426863,224.55,224.38,7.37]
[1759386642552,3.58426863,224.55,224.38,69.7323]
[1759386643149,7.69,224.54,224.38,69.7323]
[1759386643451,7.69,224.54,224.38,7.37]
[1759386645054,7.69,224.52,224.38,7.37]
[1759386647153,7.69,224.52,224.38,66.3704]
[1759386647352,7.69,224.52,224.39,7.37]
[1759386647552,102.84,224.58,224.39,7.37]
[1759386647751,1391.0,224.89,224.39,7.37]
[1759386647752,4.94913964,224.76,224.5,62.3295]
[1759386647953,7.69,224.67,224.5,69.6989]
[1759386648156,3.58426863,224.66,224.5,69.6989]
[1759386648455,7.69,224.65,224.5,181.5387]
[1759386648962,7.69,224.65,224.52,7.37]
[1759386650258,7.69,224.65,224.48,3.8535925]
[1759386650259,7.69,224.63,224.48,3.8535925]
[1759386651052,7.69,224.63,224.47,7.37]
[1759386651053,69.9919,224.6,224.47,7.37]
[1759386651253,11.27426863,224.58,224.47,7.37]
[1759386651758,3.58426863,224.57,224.47,7.37]
[1759386652761,7.69,224.58,224.47,7.37]
[1759386654164,7.69,224.58,224.47,11.3774]
[1759386654653,62.2867,224.66,224.47,11.3774]
[1759386654654,7.31,224.7,224.56,7.41]
[1759386655054,20.69448277,224.7,224.56,7.41]
[1759386655258,7.31,224.68,224.56,7.41]
[1759386656159,7.31,224.67,224.51,7.41]
[1759386656766,11.3139,224.67,224.51,7.41]
[1759386657263,7.31,224.67,224.51,7.41]
[1759386657470,119.49,224.67,224.51,7.41]
[1759386657767,7.31,224.67,224.51,7.41]
[1759386657967,7.31,224.67,224.53,7.41]
[1759386658559,7.31,224.67,224.54,4.006]
[1759386659264,7.31,224.67,224.57,4.0056]
[1759386659464,7.31,224.67,224.58,7.41]
[1759386660267,7.31,224.72,224.58,7.41]
[1759386661478,7.31,224.72,224.6,7.41]
[1759386662570,7.31,224.72,224.61,4.0049]
[1759386662769,7.31,224.72,224.62,7.41]
[1759386663077,7.31,224.79,224.65,3.58426863]
[1759386663968,7.31,224.79,224.66,7.41]
[1759386668481,324.42,224.82,224.66,7.41]
[1759386668674,324.42,224.82,224.68,4.0035]
[1759386668880,7.31,224.83,224.69,7.41]